bitfinex-derivatives/quotes_BTCF0:USTF0_20241210
["timestamp","ask_amount","ask_price","bid_price","bid_amount"]
[1733799843350,0.36090238,96877.0,96857.0,0.24593973]
[1733799843554,0.7216,96858.0,96857.0,0.24593973]
[1733799843755,0.051594,96857.0,96841.0,0.1314]
[1733799843948,0.3608,96850.0,96840.0,0.3689096]
[1733799844144,0.3608,96858.0,96840.0,0.3689096]
[1733799844350,0.1393,96869.0,96851.0,0.051596]
[1733799844552,0.3608,96864.0,96849.0,0.00011121]
[1733799844745,0.051597,96851.0,96849.0,0.00011121]
[1733799846248,0.051597,96851.0,96849.0,0.00111121]
[1733799847157,0.051597,96851.0,96849.0,0.01011121]
[1733799847749,0.051597,96851.0,96849.0,0.00111121]
[1733799847950,0.36144,96852.0,96822.0,0.1387]
[1733799848255,0.36144,96852.0,96811.0,0.34668]
[1733799848256,0.051612,96824.0,96811.0,0.34668]
[1733799848652,0.412412,96824.0,96809.0,0.7302696]
[1733799848851,0.051612,96822.0,96809.0,0.3694696]
[1733799849063,0.051612,96822.0,96817.0,7.611e-05]
[1733799849247,9.444e-05,96821.0,96817.0,7.611e-05]
[1733799850259,0.051613,96820.0,96817.0,7.611e-05]
[1733799851651,0.051613,96820.0,96818.0,1.5]
[1733799851956,9.444e-05,96821.0,96819.0,0.412414]
[1733799852363,0.051602,96843.0,96828.0,0.051609]
[1733799852658,0.3608,96852.0,96819.0,0.3608]
[1733799852659,0.001,96820.0,96819.0,0.3608]
[1733799853259,0.001,96820.0,96819.0,1.8608]
[1733799853458,0.001,96820.0,96819.0,1.912414]
[1733799853664,0.0001132,96824.0,96819.0,2.1608]
[1733799853859,0.0516,96846.0,96820.0,0.15341816]
[1733799854056,0.36144,96852.0,96832.0,0.3608]
[1733799854270,0.00064,96852.0,96840.0,0.3608]
[1733799854455,0.3608,96861.0,96840.0,0.3608]
[1733799854456,0.3608,96851.0,96840.0,0.3608]
[1733799854657,0.051602,96841.0,96840.0,0.3608]
[1733799854963,0.051602,96841.0,96809.0,0.3608]
[1733799854964,0.3608,96841.0,96809.0,0.3608]
[1733799855164,0.3608,96841.0,96819.0,1.5]
[1733799855165,0.001,96821.0,96819.0,1.5]
[1733799855359,0.001,96821.0,96809.0,0.3608]
[1733799855555,0.412414,96818.0,96817.0,1.1e-07]
[1733799856858,0.413414,96818.0,96817.0,1.1e-07]
[1733799858369,0.415414,96818.0,96817.0,1.1e-07]
[1733799858562,0.3638,96818.0,96802.0,0.3608]
[1733799858765,0.051623,96801.0,96800.0,0.1]
[1733799858958,0.3608,96807.0,96800.0,0.1]
[1733799859163,0.05162,96808.0,96800.0,0.1]
[1733799859864,0.36544,96818.0,96800.0,0.1]
[1733799860167,0.051619,96810.0,96802.0,0.051623]
[1733799860857,0.3638,96818.0,96800.0,0.1]
[1733799861163,0.15341816,96810.0,96800.0,0.1]
[1733799861466,0.3608,96801.0,96800.0,0.101]
[1733799862165,0.3608,96801.0,96800.0,0.106]
[1733799862360,0.3608,96801.0,96800.0,0.107]
[1733799862757,0.3608,96801.0,96800.0,0.101]
[1733799863069,0.001,96801.0,96800.0,0.158624]
[1733799863457,0.001,96801.0,96800.0,1.658624]
[1733799863658,0.001,96801.0,96800.0,1.607]
[1733799863957,0.001,96801.0,96800.0,0.107]
[1733799864556,0.3618,96801.0,96800.0,0.107]
[1733799865369,0.001,96801.0,96800.0,0.107]
[1733799865858,0.052623,96801.0,96800.0,0.107]
[1733799866057,0.001,96801.0,96800.0,0.107]
[1733799870069,0.3608,96821.0,96814.0,0.051616]
[1733799870270,0.36144,96832.0,96830.0,0.051608]
[1733799870575,0.3608,96832.0,96830.0,0.051608]
[1733799870875,0.36144,96843.0,96836.0,0.051605]
[1733799871171,0.09041867,96859.0,96842.0,0.051601]
[1733799871172,0.051593,96859.0,96842.0,0.051601]
[1733799871971,0.051595,96856.0,96842.0,0.051601]
[1733799872176,0.0516861,96844.0,96839.0,0.3608]
[1733799872470,0.0130851,96844.0,96842.0,0.001]
[1733799872872,0.0040851,96844.0,96834.0,0.051606]
[1733799873065,0.0130851,96844.0,96842.0,0.001]
[1733799873869,0.4254861,96844.0,96842.0,0.001]
[1733799874073,0.0130851,96844.0,96843.0,0.051601]
[1733799874681,0.09041867,96867.0,96860.0,0.051592]
[1733799874865,0.3608,96874.0,96860.0,0.051592]
[1733799874866,0.09041867,96868.0,96864.0,0.05159]
[1733799875067,0.09041867,96868.0,96865.0,0.051589]
[1733799875272,0.36144,96874.0,96865.0,0.051589]
[1733799875468,0.36144,96874.0,96871.0,0.051586]
[1733799875469,0.3608,96874.0,96871.0,0.051586]
[1733799875677,0.3608,96874.0,96860.0,0.51421816]
[1733799875678,0.00012116,96873.0,96870.0,7.371e-05]
[1733799876968,0.00012116,96873.0,96870.0,0.05165971]
[1733799878274,0.00012116,96873.0,96871.0,0.3678]
[1733799878481,0.00012116,96873.0,96872.0,0.051586]
[1733799879980,0.00012116,96873.0,96871.0,0.3668]
[1733799880280,0.051586,96872.0,96871.0,0.006]
[1733799880477,0.051586,96872.0,96860.0,0.3608]
[1733799880478,0.051602,96842.0,96811.0,0.3608]
[1733799880672,0.051602,96842.0,96803.0,0.412422]
[1733799880673,0.15341816,96821.0,96803.0,0.412422]
[1733799880872,0.051615,96817.0,96803.0,0.412422]
[1733799881072,0.3608,96812.0,96800.0,0.1]
[1733799881275,0.051623,96802.0,96800.0,0.1]
[1733799881977,0.051629,96791.0,96790.0,9.8e-05]
[1733799882181,0.051629,96791.0,96757.0,0.1383]
[1733799882182,0.051635,96779.0,96757.0,0.189946]
[1733799882370,0.051643,96765.0,96757.0,0.051646]
[1733799882570,0.051643,96765.0,96744.0,0.3608]
[1733799882571,0.051648,96755.0,96744.0,0.3608]
[1733799882781,0.15341816,96754.0,96744.0,0.3608]
[1733799882979,0.3608,96749.0,96742.0,0.051655]
[1733799883272,0.3608,96749.0,96738.0,1.50052]
[1733799883273,8.058e-05,96748.0,96744.0,0.00010961]
[1733799883471,8.058e-05,96748.0,96746.0,0.051653]
[1733799883981,8.058e-05,96748.0,96744.0,0.00010961]
[1733799884574,0.412453,96746.0,96744.0,0.00010961]
[1733799885378,0.412453,96746.0,96744.0,0.00410961]
[1733799888487,0.412453,96746.0,96744.0,0.01310961]
[1733799888978,8.058e-05,96748.0,96747.0,0.051652]
[1733799889576,8.058e-05,96748.0,96744.0,0.01310961]
[1733799889577,0.05173258,96748.0,96744.0,0.01310961]
[1733799890273,8.058e-05,96748.0,96747.0,0.004]
[1733799890875,8.058e-05,96748.0,96747.0,1.504]
[1733799891178,8.058e-05,96748.0,96747.0,1.513]
[1733799891884,8.058e-05,96748.0,96747.0,1.509]
[1733799892984,8.058e-05,96748.0,96747.0,1.564652]
[1733799894685,8.058e-05,96748.0,96747.0,0.013]
[1733799896876,8.058e-05,96748.0,96747.0,0.064652]
[1733799899882,0.36235118,96782.0,96747.0,0.013]
[1733799900089,0.051635,96780.0,96756.0,0.3608]
[1733799900685,0.051635,96780.0,96760.0,0.23727548]
[1733799900882,0.36299118,96782.0,96772.0,0.3608]
[1733799900883,0.00011222,96774.0,96772.0,0.3608]
[1733799901080,0.00011222,96774.0,96773.0,0.051638]
[1733799901793,0.00011222,96774.0,96765.0,0.051643]
[1733799901985,0.00011222,96774.0,96764.0,0.3608]
[1733799902290,0.00011222,96774.0,96772.0,0.051638]
[1733799902587,0.00011222,96774.0,96773.0,0.3608]
[1733799902795,0.00155118,96782.0,96773.0,0.3608]
[1733799903086,0.3608,96805.0,96782.0,0.051633]
[1733799903291,0.00516507,96804.0,96798.0,0.3608]
[1733799903688,0.00516507,96804.0,96803.0,0.051622]
[1733799904187,0.36596507,96804.0,96790.0,0.3608]
[1733799904695,0.36596507,96804.0,96790.0,0.59807548]
[1733799904882,0.00516507,96804.0,96802.0,0.051622]
[1733799905081,0.00516507,96804.0,96803.0,0.001]
[1733799905489,0.00516507,96804.0,96803.0,0.0011018]
[1733799905683,0.00516507,96804.0,96803.0,3.18e-05]
[1733799905883,0.00916507,96804.0,96803.0,3.18e-05]
[1733799907486,0.051623,96803.0,96790.0,0.3608]
[1733799907686,0.00916507,96804.0,96790.0,0.3608]
[1733799907687,0.051629,96792.0,96790.0,0.3608]
[1733799907887,0.3608,96791.0,96777.0,0.3608]
[1733799908085,0.051635,96779.0,96763.0,0.3608]
[1733799908290,0.051636,96777.0,96763.0,0.412443]
[1733799908483,0.3608,96783.0,96763.0,0.412443]
[1733799908882,0.3608,96783.0,96763.0,0.3608]
[1733799909086,0.3608,96775.0,96761.0,9.29e-05]
[1733799909289,0.3608,96762.0,96761.0,9.29e-05]
[1733799911294,0.3608,96762.0,96761.0,0.0050929]
[1733799912289,0.05164,96771.0,96761.0,0.0577379]
[1733799912490,0.36144,96775.0,96772.0,0.051638]
[1733799912690,0.36144,96775.0,96761.0,0.0060929]
[1733799912691,0.3608,96775.0,96773.0,0.051638]
[1733799912990,0.36144,96784.0,96773.0,0.051638]
[1733799913198,0.36144,96784.0,96774.0,1.5]
[1733799913199,0.3608,96784.0,96774.0,1.5]
[1733799913489,0.09039401,96792.0,96790.0,0.051629]
[1733799913791,0.09039401,96792.0,96776.0,0.3608]
[1733799913985,0.14201601,96804.0,96776.0,0.3608]
[1733799914185,0.09039401,96799.0,96776.0,0.3608]
[1733799914386,0.14201601,96804.0,96785.0,0.051632]
[1733799914594,0.3616127,96805.0,96784.0,0.3608]
[1733799914798,0.3609327,96805.0,96784.0,0.3608]
[1733799915292,0.0001327,96805.0,96797.0,0.3608]
[1733799915493,0.0001327,96805.0,96803.0,0.051622]
[1733799917491,0.0001327,96805.0,96803.0,0.058622]
[1733799917692,0.051607,96832.0,96821.0,0.051613]
[1733799917992,0.09066254,96833.0,96815.0,0.3608]
[1733799918185,0.00155017,96834.0,96822.0,0.051612]
[1733799918399,0.00155017,96834.0,96815.0,0.3608]
[1733799918597,0.00155017,96834.0,96825.0,0.3608]
[1733799918796,0.00155017,96834.0,96833.0,0.051606]
[1733799918996,0.00165247,96834.0,96833.0,0.051606]
[1733799919501,0.00365247,96834.0,96833.0,0.051606]
[1733799920093,0.00365247,96834.0,96833.0,0.412406]
[1733799920294,0.00365247,96834.0,96833.0,0.3608]
[1733799920688,0.00365247,96834.0,96833.0,0.36073]
[1733799920895,0.00465247,96834.0,96833.0,1.86073]
[1733799921905,0.00565247,96834.0,96833.0,1.86073]
[1733799922106,0.0041023,96834.0,96832.0,0.05173801]
[1733799922802,0.0041023,96834.0,96833.0,0.3608]
[1733799923003,0.0041023,96834.0,96832.0,0.00013101]
[1733799923498,0.0031023,96834.0,96832.0,0.00013101]
[1733799923699,0.0031023,96834.0,96832.0,6.101e-05]
[1733799923899,0.0001023,96834.0,96832.0,6.101e-05]
[1733799924103,0.0041023,96834.0,96832.0,6.101e-05]
[1733799925194,0.0041023,96834.0,96833.0,0.051606]
[1733799926311,0.36234931,96878.0,96857.0,0.051594]
[1733799926497,0.41457231,96878.0,96857.0,0.051594]
[1733799926808,0.36298931,96878.0,96857.0,0.051524]
[1733799927411,9.842e-05,96860.0,96857.0,0.051524]
[1733799927906,9.842e-05,96860.0,96857.0,0.006]
[1733799928504,9.842e-05,96860.0,96857.0,0.007]
[1733799929509,9.842e-05,96860.0,96857.0,0.008]
[1733799929707,0.051593,96858.0,96857.0,0.00793]
[1733799930106,0.051593,96858.0,96857.0,0.00056995]
[1733799930307,9.842e-05,96860.0,96833.0,0.051606]
[1733799930507,0.3608,96841.0,96833.0,0.051606]
[1733799930909,0.3608,96841.0,96802.0,0.2706]
[1733799930910,0.3608,96836.0,96812.0,0.3608]
[1733799931214,0.3608,96836.0,96827.0,0.051609]
[1733799931407,0.051607,96833.0,96827.0,0.051609]
[1733799931802,0.36144,96836.0,96834.0,0.051605]
[1733799932110,0.3608,96836.0,96834.0,0.051605]
[1733799932318,0.09066254,96838.0,96834.0,0.051605]
[1733799932610,0.051603,96840.0,96834.0,0.051605]
[1733799932811,0.051603,96840.0,96834.0,0.051535]
[1733799933013,0.36144,96843.0,96841.0,0.051602]
[1733799933217,0.48236501,96862.0,96838.0,0.3608]
[1733799933410,0.36148,96862.0,96846.0,0.3608]
[1733799933610,0.052271,96862.0,96848.0,0.051598]
[1733799933805,0.051591,96862.0,96848.0,0.051598]
[1733799934006,0.412387,96870.0,96846.0,0.3608]
[1733799934203,0.412387,96870.0,96858.0,0.051593]
[1733799934408,0.59775564,96870.0,96846.0,0.3608]
[1733799934620,0.59785406,96860.0,96841.0,0.002]
[1733799934915,0.3608,96842.0,96828.0,0.3608]
[1733799935308,0.3608,96842.0,96830.0,0.051608]
[1733799935508,0.3608,96842.0,96814.0,0.3608]
[1733799935509,0.23695564,96840.0,96814.0,0.3608]
[1733799935711,0.3608,96833.0,96824.0,1.208e-05]
[1733799935909,0.412411,96825.0,96813.0,0.00154915]
[1733799936220,0.051617,96813.0,96779.0,0.00702907]
[1733799936415,0.051617,96813.0,96771.0,0.22983907]
[1733799936416,0.3608,96787.0,96777.0,0.051636]
[1733799936615,0.051635,96780.0,96771.0,0.22983907]
[1733799936810,0.051636,96779.0,96771.0,0.22983907]
[1733799937012,0.3608,96779.0,96772.0,0.04526299]
[1733799937312,0.051638,96774.0,96772.0,8.423e-05]
[1733799938310,0.051638,96774.0,96772.0,0.00908423]
[1733799940125,0.051638,96774.0,96772.0,0.01408423]
[1733799940318,0.051638,96774.0,96752.0,0.00155021]
[1733799940319,0.051649,96753.0,96752.0,0.00155021]
[1733799940519,0.3608,96753.0,96738.0,0.3608]
[1733799940709,0.051653,96746.0,96738.0,0.3608]
[1733799942213,0.051653,96746.0,96745.0,0.19366031]
[1733799943116,0.051653,96746.0,96745.0,0.009]
[1733799943428,0.36144,96753.0,96745.0,0.013]
[1733799943727,0.051653,96747.0,96745.0,0.013]
[1733799944818,0.052653,96747.0,96745.0,0.009]
[1733799946422,0.001,96747.0,96745.0,0.009]
[1733799946720,0.0015511,96767.0,96745.0,0.009]
[1733799946916,0.0015511,96767.0,96750.0,0.23695564]
[1733799947215,0.0015511,96767.0,96757.0,0.051646]
[1733799947625,0.0015511,96767.0,96765.0,0.051642]
[1733799947823,0.36092288,96778.0,96765.0,0.051642]
[1733799948013,0.36092288,96778.0,96764.0,0.3608]
[1733799948014,0.41255888,96778.0,96764.0,0.3608]
[1733799948416,0.001,96767.0,96764.0,0.3608]
[1733799948619,0.001,96767.0,96758.0,0.051646]
[1733799948817,0.001,96767.0,96755.0,0.3608]
[1733799949020,0.051644,96762.0,96755.0,0.3608]
[1733799949519,0.051644,96762.0,96751.0,0.1352]
[1733799949923,0.36148,96769.0,96748.0,0.051651]
[1733799950227,0.3608,96749.0,96735.0,0.00052]
[1733799950518,0.051656,96740.0,96728.0,0.051662]
[1733799950723,0.051656,96740.0,96723.0,0.3608]
[1733799950724,0.051656,96740.0,96731.0,0.051661]
[1733799950926,0.23695564,96750.0,96724.0,1.5]
[1733799951116,0.051656,96740.0,96730.0,0.051661]
[1733799952025,0.052656,96740.0,96733.0,0.00907832]
[1733799952219,0.052656,96740.0,96695.0,0.3608]
[1733799952220,0.3608,96734.0,96695.0,0.3608]
[1733799952424,0.3608,96734.0,96696.0,0.051679]
[1733799952425,0.051672,96710.0,96696.0,0.051679]
[1733799953220,0.051672,96710.0,96697.0,7.251e-05]
[1733799953416,0.05175841,96710.0,96697.0,7.251e-05]
[1733799954631,0.00108641,96710.0,96709.0,0.005]
[1733799954819,0.00208641,96710.0,96709.0,0.013]
[1733799955018,0.00108641,96710.0,96709.0,0.008]
[1733799955227,0.00108641,96710.0,96709.0,0.011]
[1733799955620,8.641e-05,96710.0,96709.0,0.003]
[1733799955815,8.641e-05,96710.0,96709.0,0.004]
[1733799958521,8.641e-05,96710.0,96709.0,0.055673]
[1733799959124,8.641e-05,96710.0,96709.0,1.555673]
[1733799960330,0.3608,96742.0,96711.0,0.051671]
[1733799960518,0.3608,96742.0,96709.0,1.555673]
[1733799960519,0.00516892,96732.0,96720.0,0.23695564]
[1733799960724,0.00516892,96732.0,96721.0,0.1371]
[1733799960925,0.3608,96725.0,96709.0,1.50452]
[1733799961123,0.412472,96710.0,96709.0,0.004]
[1733799961325,0.41258656,96710.0,96709.0,0.004]
[1733799961834,0.41258656,96710.0,96709.0,0.001]
[1733799962330,0.41258656,96710.0,96697.0,7.251e-05]
[1733799962331,0.051673,96708.0,96697.0,7.251e-05]
[1733799962521,0.36091456,96710.0,96700.0,0.151677]
[1733799962720,0.00011456,96710.0,96700.0,0.151677]
[1733799963438,0.00516934,96724.0,96722.0,0.051665]
[1733799963622,0.00516934,96724.0,96717.0,0.3608]
[1733799964237,9.12e-05,96723.0,96717.0,0.3608]
[1733799964533,9.12e-05,96723.0,96722.0,0.051666]
[1733799964831,9.12e-05,96723.0,96717.0,0.3608]
[1733799964832,0.3608,96750.0,96728.0,0.051662]
[1733799965035,0.00672053,96733.0,96732.0,0.3608]
[1733799965425,0.00672053,96733.0,96732.0,1.8608]
[1733799965729,0.00680121,96733.0,96732.0,0.3608]
[1733799966026,0.00680121,96733.0,96718.0,0.32086031]
[1733799966027,0.051662,96729.0,96718.0,0.1362]
[1733799966434,0.00680121,96733.0,96724.0,0.051664]
[1733799966623,0.00680121,96733.0,96727.0,0.051663]
[1733799966624,0.01144121,96733.0,96727.0,0.051663]
[1733799966829,0.01080121,96733.0,96727.0,0.051663]
[1733799967433,0.001,96729.0,96720.0,0.23695564]
[1733799967635,0.3608,96756.0,96728.0,0.3608]
[1733799967840,0.412444,96764.0,96748.0,0.051651]
[1733799968033,0.3608,96764.0,96749.0,0.3608]
[1733799968346,0.3608,96764.0,96748.0,0.051651]
[1733799968347,0.051644,96763.0,96748.0,0.051651]
[1733799968638,0.051652,96747.0,96731.0,0.05166]
[1733799969037,0.36144,96754.0,96730.0,0.3608]
[1733799969230,0.3608,96737.0,96730.0,0.18466031]
[1733799969427,0.051661,96731.0,96730.0,0.18466031]
[1733799969628,0.36144,96737.0,96730.0,0.18466031]
[1733799969830,0.36144,96737.0,96721.0,0.051666]
[1733799969831,0.05166,96733.0,96721.0,0.051666]
[1733799970138,0.051661,96732.0,96721.0,0.051666]
[1733799971031,0.051661,96732.0,96721.0,0.060666]
[1733799971526,0.051661,96732.0,96730.0,0.005]
[1733799971733,0.052661,96732.0,96730.0,0.005]
[1733799972230,0.001,96732.0,96730.0,0.051661]
[1733799972731,0.3608,96743.0,96729.0,0.18466031]
[1733799972934,0.09066254,96751.0,96748.0,0.051652]
[1733799973134,0.00064,96757.0,96748.0,0.412452]
[1733799973341,0.09078518,96762.0,96749.0,0.051651]
[1733799973531,0.00012264,96762.0,96749.0,0.051651]
[1733799973731,0.00516737,96761.0,96749.0,0.051651]
[1733799974132,0.00516737,96761.0,96755.0,0.051648]
[1733799974336,0.00516737,96761.0,96748.0,0.3608]
[1733799974532,0.3608,96754.0,96749.0,0.003]
[1733799974837,0.051647,96758.0,96749.0,0.003]
[1733799975641,0.00012264,96762.0,96749.0,0.003]
[1733799975844,0.00012264,96762.0,96749.0,0.054651]
[1733799976236,0.00012264,96762.0,96749.0,0.055651]
[1733799976435,0.05176764,96762.0,96749.0,0.055651]
[1733799976932,0.05165,96751.0,96749.0,0.004]
[1733799977939,0.00064,96754.0,96750.0,0.051651]
[1733799978244,0.051647,96757.0,96751.0,0.05165]
[1733799978547,0.36092264,96762.0,96749.0,0.004]
[1733799978841,0.36092264,96762.0,96756.0,0.051647]
[1733799978842,0.41256764,96762.0,96756.0,0.051647]
[1733799979240,0.36092264,96762.0,96749.0,0.004]
[1733799979639,0.051649,96753.0,96749.0,0.004]
[1733799979835,0.051649,96753.0,96749.0,0.003]
[1733799980036,0.051649,96753.0,96745.0,0.412453]
[1733799980538,0.051645,96761.0,96754.0,0.051648]
[1733799980740,0.36092264,96762.0,96749.0,0.003]
[1733799980741,0.36156264,96762.0,96749.0,0.003]
[1733799980939,0.00012264,96762.0,96759.0,0.051645]
[1733799981345,0.00012264,96762.0,96755.0,0.3608]
[1733799981740,0.00012264,96762.0,96760.0,0.051645]
[1733799982240,0.00012264,96762.0,96755.0,0.3608]
[1733799982241,0.3608,96790.0,96759.0,0.3608]
[1733799982447,0.3608,96790.0,96771.0,0.3608]
[1733799982647,0.3608,96790.0,96759.0,0.3608]
[1733799982847,0.051635,96780.0,96770.0,0.3608]
[1733799983143,0.00012216,96779.0,96770.0,0.3608]
[1733799983340,0.00012216,96779.0,96778.0,0.412436]
[1733799984442,0.00612216,96779.0,96778.0,0.412436]
[1733799985241,0.001,96790.0,96778.0,0.412436]
[1733799985242,0.001,96790.0,96789.0,0.05163]
[1733799986043,0.3608,96801.0,96797.0,0.051626]
[1733799986235,0.3608,96819.0,96803.0,0.051622]
[1733799986433,0.0001297,96818.0,96808.0,0.05162]
[1733799986833,0.0001297,96818.0,96813.0,0.3608]
[1733799987044,0.0001297,96818.0,96814.0,0.051617]
[1733799987747,0.0061297,96818.0,96814.0,0.051617]
[1733799987955,0.0061297,96818.0,96813.0,0.3608]
[1733799988144,0.0061297,96818.0,96808.0,0.001]
[1733799988145,0.3608,96816.0,96808.0,0.001]
[1733799988341,0.051616,96815.0,96808.0,0.001]
[1733799988548,0.3608,96816.0,96808.0,0.001]
[1733799988549,0.051619,96809.0,96808.0,0.001]
[1733799989039,0.36144,96814.0,96808.0,0.001]
[1733799989040,0.00064,96814.0,96808.0,0.001]
[1733799989245,0.0091297,96818.0,96817.0,0.051615]
[1733799989437,0.0061297,96818.0,96817.0,0.051615]
[1733799989746,0.0061297,96818.0,96813.0,0.3608]
[1733799990047,0.0081297,96818.0,96814.0,0.052617]
[1733799990351,0.0081297,96818.0,96816.0,0.051615]
[1733799990549,0.0001297,96818.0,96816.0,0.051615]
[1733799990855,0.0091297,96818.0,96817.0,0.001]
[1733799991242,0.0091297,96818.0,96816.0,0.051615]
[1733799991243,0.0081297,96818.0,96816.0,0.051615]
[1733799991844,0.0091297,96818.0,96816.0,0.052615]
[1733799992438,0.0121297,96818.0,96816.0,0.052615]
[1733799992843,0.0121297,96818.0,96816.0,0.00093]
[1733799993153,0.0091297,96818.0,96816.0,0.00093]
[1733799993342,0.0121297,96818.0,96816.0,0.00093]
[1733799993543,0.051615,96817.0,96816.0,0.00093]
[1733799993847,0.0121297,96818.0,96793.0,0.00782229]
[1733799994045,0.051616,96815.0,96800.0,0.051624]
[1733799994447,0.051617,96814.0,96800.0,0.051624]
[1733799994648,0.051617,96814.0,96793.0,0.00782229]
[1733799994649,0.051617,96814.0,96802.0,0.412423]
[1733799995148,0.003,96817.0,96802.0,0.3608]
[1733799995342,0.05162,96808.0,96802.0,0.3608]
[1733799995542,0.36148,96813.0,96802.0,0.3608]
[1733799995744,0.3608,96813.0,96803.0,0.051622]
[1733799995942,0.002,96814.0,96802.0,0.3608]
[1733799996145,0.002,96814.0,96813.0,0.051617]
[1733799996655,0.002,96814.0,96804.0,0.051621]
[1733799996953,0.005,96814.0,96804.0,0.051621]
[1733799997553,0.009,96814.0,96813.0,0.001]
[1733799997749,0.007,96814.0,96813.0,0.001]
[1733799998054,0.007,96814.0,96807.0,0.05162]
[1733799998055,0.003,96814.0,96807.0,0.05162]
[1733799998648,0.003,96814.0,96812.0,0.051617]
[1733799998649,0.005,96814.0,96812.0,0.051617]
[1733799998848,0.005,96814.0,96812.0,0.051547]
[1733799999351,0.003,96814.0,96812.0,0.051547]
[1733799999655,0.003,96814.0,96813.0,1.5]
[1733799999854,0.01,96814.0,96813.0,1.501]
[1733800000346,0.004,96814.0,96813.0,1.5]
[1733800001057,0.001,96814.0,96813.0,1.507]
[1733800001258,0.052617,96814.0,96813.0,0.007]
[1733800001554,0.36144,96817.0,96790.0,0.1286]
[1733800001762,0.36144,96817.0,96800.0,0.15362667]
[1733800001763,0.3608,96809.0,96800.0,0.15362667]
[1733800001957,0.001,96814.0,96808.0,0.36073]
[1733800002146,0.001,96814.0,96813.0,0.054617]
[1733800002855,0.001,96814.0,96813.0,1.503]
[1733800003155,0.0001297,96818.0,96813.0,1.503]
[1733800003357,0.001,96814.0,96813.0,1.511]
[1733800003563,0.0001297,96818.0,96817.0,0.051615]
[1733800004055,0.3608,96839.0,96817.0,0.051615]
[1733800004056,0.3608,96839.0,96831.0,0.051607]
[1733800004248,0.00068,96839.0,96838.0,0.051604]
[1733800004448,0.3608,96860.0,96831.0,0.3608]
[1733800004449,0.3608,96860.0,96833.0,0.3608]
[1733800004646,0.3608,96860.0,96845.0,0.4124]
[1733800004850,0.3608,96860.0,96845.0,0.41233]
[1733800005058,0.00010513,96859.0,96846.0,0.051599]
[1733800005254,0.00010513,96859.0,96845.0,0.36080999]
[1733800005255,0.00010513,96859.0,96847.0,0.051599]
[1733800005657,0.00010513,96859.0,96853.0,0.3608]
[1733800005961,0.00010513,96859.0,96845.0,0.36830162]
[1733800006558,0.00010513,96859.0,96854.0,0.3608]
[1733800006757,0.05169813,96859.0,96854.0,0.3608]
[1733800007151,0.05269813,96859.0,96854.0,0.3608]
[1733800007356,0.05469813,96859.0,96854.0,0.3608]
[1733800007858,0.00310513,96859.0,96854.0,0.36073]
[1733800008050,0.00310513,96859.0,96845.0,0.36830162]
[1733800008051,0.051599,96848.0,96845.0,0.36080999]
[1733800008255,0.00710513,96859.0,96845.0,0.36080999]
[1733800008256,0.00910513,96859.0,96845.0,7.999e-05]
[1733800008455,0.051599,96847.0,96845.0,7.999e-05]
[1733800009054,0.36144,96853.0,96833.0,0.3686475]
[1733800009258,0.36144,96853.0,96823.0,0.3608]
[1733800009259,0.3608,96845.0,96823.0,0.3608]
[1733800009464,0.051605,96836.0,96823.0,0.3608]
[1733800009665,0.051605,96836.0,96827.0,0.051609]
[1733800010363,0.002,96848.0,96831.0,0.3608]
[1733800010663,0.002,96848.0,96847.0,0.051599]
[1733800010854,0.002,96848.0,96847.0,0.412329]
[1733800011251,0.00010513,96859.0,96847.0,0.412329]
[1733800011455,0.00010513,96859.0,96847.0,0.3608]
[1733800011654,0.00010513,96859.0,96849.0,0.051598]
[1733800012055,0.051598,96849.0,96847.0,0.3608]
[1733800012256,0.3608,96855.0,96839.0,0.3608]
[1733800012460,0.002,96848.0,96839.0,0.3608]
[1733800013255,0.0516,96845.0,96839.0,0.3608]
[1733800013462,0.3608,96843.0,96830.0,0.00773567]
[1733800013665,0.3608,96847.0,96827.0,0.3608]
[1733800013960,0.3608,96847.0,96827.0,0.36073]
[1733800013961,0.051606,96834.0,96827.0,0.36073]
[1733800014158,0.3608,96847.0,96839.0,0.001]
[1733800014159,0.051603,96840.0,96839.0,0.001]
[1733800014757,0.051603,96840.0,96825.0,0.18466031]
[1733800014758,0.051607,96831.0,96830.0,0.005]
[1733800016874,0.051607,96831.0,96810.0,0.24620205]
[1733800016875,0.3,96831.0,96810.0,0.24620205]
[1733800017165,0.051614,96820.0,96816.0,0.051615]
[1733800017373,0.3608,96823.0,96816.0,0.051615]
[1733800017374,0.051614,96819.0,96816.0,0.051615]
[1733800017764,0.36144,96823.0,96806.0,0.18494818]
[1733800017963,0.3608,96814.0,96804.0,1.5]
[1733800018265,0.051623,96802.0,96800.0,9.798e-05]
[1733800019868,0.412423,96802.0,96800.0,9.798e-05]
[1733800021071,0.412423,96802.0,96761.0,0.1322]
[1733800021072,0.051636,96777.0,96771.0,1.5]
[1733800021273,0.6618,96802.0,96761.0,0.1322]
[1733800021274,0.3608,96776.0,96766.0,0.18494818]
[1733800021570,0.3608,96776.0,96773.0,0.051638]
[1733800022861,0.00124858,96775.0,96773.0,0.051638]
[1733800023073,0.00124858,96775.0,96760.0,0.15362667]
[1733800023074,0.051644,96763.0,96756.0,0.18494818]
[1733800023379,0.051663,96726.0,96712.0,0.30786637]
[1733800023567,0.051663,96726.0,96717.0,0.36842713]
[1733800024081,0.00124858,96722.0,96717.0,0.36842713]
[1733800024269,0.00124858,96722.0,96720.0,0.051667]
[1733800024467,0.00124858,96722.0,96717.0,0.36842713]
[1733800024468,0.00010919,96725.0,96721.0,0.3608]
[1733800024661,0.051653,96746.0,96730.0,0.051661]
[1733800024861,0.0011345,96738.0,96737.0,0.3608]
[1733800025462,0.0011345,96738.0,96737.0,0.412458]
[1733800027075,0.0021345,96738.0,96737.0,0.412458]
[1733800027767,0.00155141,96752.0,96751.0,0.05165]